[Event "2. AUT Bundesliga 2020-21"]
[Site "Graz"]
[Date "2021.03.13"]
[Round "2.6"]
[White "Pretterhofer, Kiaras"]
[Black "Kobas, Mihael"]
[Result "1/2-1/2"]
[ECO "B92"]
[WhiteElo "1979"]
[BlackElo "2030"]
[Annotator "ChessBase"]
[PlyCount "60"]
[EventDate "2021.01.17"]
[EventType "team-tourn"]
[EventCountry "AUT"]
[SourceTitle "playchess.com"]
[Source "ChessBase"]
[SourceQuality "1"]
[TimeControl "40/5400+30:1800+30"]

1. e4 {[%emt 0:00:00]} c5 {[%emt 0:00:00]} 2. Nf3 {[%emt 0:00:00]} d6 {[%emt 0:00:00]} 3. d4 {[%emt 0:00:07]} cxd4 {[%emt 0:00:00]} 4. Nxd4 {[%emt 0:00:08]} Nf6 {[%emt 0:00:08]} 5. Nc3 {[%emt 0:00:34]} a6 {[%emt 0:00:12]} 6. Be2 {[%emt 0:01:06]} e5 {[%emt 0:02:00]} 7. Nb3 {[%emt 0:01:16]} Be7 {[%emt 0:00:31]} 8. O-O {[%emt 0:00:19]} O-O {[%emt 0:00:59]} 9. Be3 {[%emt 0:01:56]} Be6 {[%emt 0:00:31]} 10. f4 {[%emt 0:05:13]} Qc7 {[%emt 0:07:16]} 11. f5 {[%emt 0:06:18]} Bc4 {[%emt 0:00:23]} 12. Bxc4 {[%emt 0:01:00]} Qxc4 {[%emt 0:00:08]} 13. Qd3 {[%emt 0:00:08]} Qxd3 {[%emt 0:03:34]} 14. cxd3 {[%emt 0:00:02]} b5 {[%emt 0:04:47]} 15. Rac1 {[%emt 0:02:16]} Nbd7 {[%emt 0:02:20]} 16. Rfd1 {[%emt 0:07:31]} Rfc8 {[%emt 0:03:11]} 17. a3 {[%emt 0:08:20]} Bd8 {[%emt 0:10:53]} 18. h3 {[%emt 0:02:42]} Bb6 {[%emt 0:02:47]} 19. Bxb6 {[%emt 0:00:38]} Nxb6 {[%emt 0:00:06]} 20. Kf2 {[%emt 0:00:44]} Kf8 {[%emt 0:06:28]} 21. Kf3 {[%emt 0:02:19]} Rc7 {[%emt 0:02:46]} 22. Ne2 {[%emt 0:01:03]} Rac8 {[%emt 0:00:35]} 23. Rxc7 {[%emt 0:01:20]} Rxc7 {[%emt 0:00:07]} 24. Rc1 {[%emt 0:00:14]} Rxc1 {[%emt 0:00:22]} 25. Nbxc1 {[%emt 0:00:11]} Ke7 {[%emt 0:10:38]} 26. b3 {[%emt 0:02:01]} d5 {[%emt 0:02:28]} 27. g4 {[%emt 0:01:40]} d4 {[%emt 0:01:44]} 28. b4 {[%emt 0:00:52]} Na4 {[%emt 0:02:40]} 29. Nb3 {[%emt 0:00:44]} Nd7 {[%emt 0:02:21]} 30. g5 {[%emt 0:04:48]} f6 {[%emt 0:04:24]} 1/2-1/2

[Event "2. AUT Bundesliga 2020-21"]
[Site "Graz"]
[Date "2021.03.13"]
[Round "2.8"]
[White "Ftacnik, Lubomir"]
[Black "Frank, Emanuel"]
[Result "1-0"]
[ECO "D37"]
[WhiteElo "2512"]
[BlackElo "2242"]
[Annotator "ChessBase"]
[PlyCount "59"]
[EventDate "2021.01.17"]
[EventType "team-tourn"]
[EventCountry "AUT"]
[SourceTitle "playchess.com"]
[Source "ChessBase"]
[SourceQuality "1"]
[TimeControl "40/5400+30:1800+30"]

1. Nf3 {[%emt 0:00:00]} d5 {[%emt 0:00:00]} 2. d4 {[%emt 0:00:00]} Nf6 {[%emt 0:00:00]} 3. c4 {[%emt 0:00:00]} e6 {[%emt 0:00:00]} 4. Nc3 {[%emt 0:00:04]} Be7 {[%emt 0:00:22]} 5. Bf4 {[%emt 0:00:28]} O-O {[%emt 0:00:13]} 6. e3 {[%emt 0:00:18]} b6 {[%emt 0:00:15]} 7. Bd3 {[%emt 0:01:19]} c5 {[%emt 0:06:35]} 8. cxd5 {[%emt 0:03:53]} Nxd5 {[%emt 0:06:30]} 9. Be4 {[%emt 0:15:12]} Bb7 {[%emt 0:08:12]} 10. dxc5 {[%emt 0:01:15]} bxc5 {[%emt 0:09:41]} 11. O-O {[%emt 0:02:13]} f5 {[%emt 0:14:11]} 12. Qb3 {[%emt 0:20:14]} Bc6 {[%emt 0:18:43]} 13. Bxd5 {[%emt 0:02:23]} Bxd5 {[%emt 0:00:12]} 14. Nxd5 {[%emt 0:01:37]} Qxd5 {[%emt 0:00:04]} 15. Qxd5 {[%emt 0:05:40]} exd5 {[%emt 0:00:10]} 16. Rad1 {[%emt 0:00:44]} Rd8 {[%emt 0:01:02]} 17. Rd2 {[%emt 0:00:09]} Kf7 {[%emt 0:08:08]} 18. Bxb8 {[%emt 0:18:24]} Rdxb8 {[%emt 0:00:25]} 19. Ne5+ {[%emt 0:01:08]} Ke6 {[%emt 0:00:44]} 20. Nc6 {[%emt 0:00:16]} Rb7 {[%emt 0:04:27]} 21. Rfd1 {[%emt 0:00:12]} Bf8 {[%emt 0:05:57]} 22. Rxd5 {[%emt 0:13:45]} Rxb2 {[%emt 0:00:13]} 23. Rd7 {[%emt 0:00:56]} Kf6 {[%emt 0:07:36]} 24. a4 {[%emt 0:04:40]} Ra2 {[%emt 0:02:01]} 25. a5 {[%emt 0:02:35]} a6 {[%emt 0:04:53]} 26. Rc7 {[%emt 0:00:54]} Re8 {[%emt 0:01:08]} 27. h4 {[%emt 0:00:45]} Ke6 {[%emt 0:01:04]} 28. f4 {[%emt 0:01:24]} c4 {[%emt 0:00:41]} 29. Nd8+ {[%emt 0:00:33]} Kf6 {[%emt 0:00:28]} 30. Rc6+ {[%emt 0:00:08]} 1-0

[Event "2. AUT Bundesliga 2020-21"]
[Site "Graz"]
[Date "2021.03.13"]
[Round "2.9"]
[White "Heindl, Matthias"]
[Black "Milanovic, Danilo"]
[Result "0-1"]
[ECO "A21"]
[WhiteElo "2200"]
[BlackElo "2466"]
[Annotator "ChessBase"]
[PlyCount "84"]
[EventDate "2021.01.17"]
[EventType "team-tourn"]
[EventCountry "AUT"]
[SourceTitle "playchess.com"]
[Source "ChessBase"]
[SourceQuality "1"]
[TimeControl "40/5400+30:1800+30"]

1. c4 {[%emt 0:00:00]} e5 {[%emt 0:00:15]} 2. Nf3 {[%emt 0:00:00]} d6 {[%emt 0:05:25]} 3. Nc3 {[%emt 0:00:19]} Nf6 {[%emt 0:05:55]} 4. g3 {[%emt 0:05:40]} g6 {[%emt 0:01:19]} 5. Bg2 {[%emt 0:01:28]} Bg7 {[%emt 0:00:20]} 6. d4 {[%emt 0:00:30]} Nbd7 {[%emt 0:00:24]} 7. O-O {[%emt 0:00:56]} O-O {[%emt 0:00:14]} 8. h3 {[%emt 0:00:09]} c6 {[%emt 0:05:32]} 9. e4 {[%emt 0:00:05]} exd4 {[%emt 0:02:05]} 10. Nxd4 {[%emt 0:00:12]} Re8 {[%emt 0:00:16]} 11. Be3 {[%emt 0:00:36]} a5 {[%emt 0:09:25]} 12. Qc2 {[%emt 0:00:28]} Nc5 {[%emt 0:07:06]} 13. Rad1 {[%emt 0:00:13]} Nfd7 {[%emt 0:00:36]} 14. Rfe1 {[%emt 0:06:29]} a4 {[%emt 0:10:53]} 15. f4 {[%emt 0:03:58]} Qa5 {[%emt 0:03:21]} 16. Bf2 {[%emt 0:02:17]} Qb4 {[%emt 0:04:59]} 17. a3 {[%emt 0:04:49]} Qa5 {[%emt 0:00:19]} 18. Nf3 {[%emt 0:11:06]} Nb6 {[%emt 0:11:32]} 19. Bf1 {[%emt 0:16:51]} Bf8 {[%emt 0:04:30]} 20. f5 {[%emt 0:06:17]} Nbd7 {[%emt 0:01:56]} 21. e5 {[%emt 0:07:34]} Nxe5 {[%emt 0:02:21]} 22. Nxe5 {[%emt 0:02:09]} dxe5 {[%emt 0:00:04]} 23. g4 {[%emt 0:01:17]} gxf5 {[%emt 0:04:37]} 24. gxf5 {[%emt 0:04:49]} e4 {[%emt 0:00:12]} 25. Bd4 {[%emt 0:03:40]} Bxf5 {[%emt 0:01:50]} 26. Qg2+ {[%emt 0:06:38]} Bg6 {[%emt 0:00:28]} 27. Kh1 {[%emt 0:02:53]} Bg7 {[%emt 0:05:58]} 28. Bxg7 {[%emt 0:06:12]} Kxg7 {[%emt 0:00:07]} 29. h4 {[%emt 0:01:35]} Re5 {[%emt 0:05:26]} 30. Be2 {[%emt 0:02:09]} h5 {[%emt 0:03:59]} 31. Qg3 {[%emt 0:00:22]} Rae8 {[%emt 0:00:45]} 32. Rg1 {[%emt 0:00:38]} R8e6 {[%emt 0:03:14]} 33. Rdf1 {[%emt 0:00:36]} Qd8 {[%emt 0:00:32]} 34. Qf4 {[%emt 0:01:24]} Qe7 {[%emt 0:00:26]} 35. Bd1 {[%emt 0:00:43]} Rf6 {[%emt 0:00:34]} 36. Qg3 {[%emt 0:01:18]} Rxf1 {[%emt 0:00:27]} 37. Rxf1 {[%emt 0:00:02]} Kh7 {[%emt 0:00:23]} 38. Ne2 {[%emt 0:00:31]} Nd3 {[%emt 0:00:29]} 39. Bxa4 {[%emt 0:01:56]} e3 {[%emt 0:00:38]} 40. b4 {[%emt 0:00:00]} Re4 {[%emt 0:00:00]} 41. Bc2 {[%emt 0:03:42]} Rxh4+ {[%emt 0:00:32]} 42. Kg1 {[%emt 0:00:08]} Rg4 {[%emt 0:00:06]} 0-1

[Event "2. AUT Bundesliga 2020-21"]
[Site "Graz"]
[Date "2021.03.13"]
[Round "2.10"]
[White "Druska, Juraj"]
[Black "Hafner, Robert"]
[Result "1-0"]
[ECO "B10"]
[WhiteElo "2495"]
[BlackElo "2006"]
[Annotator "ChessBase"]
[PlyCount "71"]
[EventDate "2021.01.17"]
[EventType "team-tourn"]
[EventCountry "AUT"]
[SourceTitle "playchess.com"]
[Source "ChessBase"]
[SourceQuality "1"]
[TimeControl "40/5400+30:1800+30"]

1. e4 {[%emt 0:00:00]} c6 {[%emt 0:00:00]} 2. Nf3 {[%emt 0:00:13]} d5 {[%emt 0:00:00]} 3. d3 {[%emt 0:00:10]} Bg4 {[%emt 0:04:16]} 4. h3 {[%emt 0:00:37]} Bxf3 {[%emt 0:00:21]} 5. Qxf3 {[%emt 0:00:05]} e6 {[%emt 0:00:05]} 6. g3 {[%emt 0:00:10]} Nf6 {[%emt 0:00:06]} 7. Bg2 {[%emt 0:00:05]} Be7 {[%emt 0:00:11]} 8. O-O {[%emt 0:00:07]} O-O {[%emt 0:00:15]} 9. Qe2 {[%emt 0:00:04]} Ne8 {[%emt 0:03:54]} 10. e5 {[%emt 0:01:43]} Nd7 {[%emt 0:00:08]} 11. Nd2 {[%emt 0:03:05]} g6 {[%emt 0:04:53]} 12. f4 {[%emt 0:10:03]} Ng7 {[%emt 0:00:13]} 13. Nf3 {[%emt 0:03:14]} Qc7 {[%emt 0:33:31]} 14. Be3 {[%emt 0:03:49]} a5 {[%emt 0:02:59]} 15. g4 {[%emt 0:16:31]} a4 {[%emt 0:01:10]} 16. c3 {[%emt 0:04:57]} Qa5 {[%emt 0:08:38]} 17. Rac1 {[%emt 0:13:27]} Qa6 {[%emt 0:01:05]} 18. Rfd1 {[%emt 0:04:17]} Rfd8 {[%emt 0:01:19]} 19. Bf1 {[%emt 0:00:36]} Rac8 {[%emt 0:04:23]} 20. Qf2 {[%emt 0:13:07]} Qa5 {[%emt 0:00:45]} 21. a3 {[%emt 0:08:38]} Bc5 {[%emt 0:10:02]} 22. d4 {[%emt 0:00:32]} Be7 {[%emt 0:02:03]} 23. Bd3 {[%emt 0:00:06]} f5 {[%emt 0:02:06]} 24. exf6 {[%emt 0:01:19]} Bxf6 {[%emt 0:00:28]} 25. Kg2 {[%emt 0:01:53]} Rf8 {[%emt 0:00:30]} 26. Qe2 {[%emt 0:04:14]} Be7 {[%emt 0:01:03]} 27. Rh1 {[%emt 0:00:12]} Bd6 {[%emt 0:03:50]} 28. Ne5 {[%emt 0:00:09]} Nxe5 {[%emt 0:01:03]} 29. fxe5 {[%emt 0:00:06]} Be7 {[%emt 0:00:08]} 30. h4 {[%emt 0:05:40]} Qd8 {[%emt 0:02:18]} 31. Rh3 {[%emt 0:01:18]} Rf7 {[%emt 0:05:44]} 32. Rch1 {[%emt 0:00:19]} Qd7 {[%emt 0:02:54]} 33. Qc2 {[%emt 0:01:58]} b5 {[%emt 0:00:52]} 34. h5 {[%emt 0:00:18]} gxh5 {[%emt 0:01:42]} 35. Bxh7+ {[%emt 0:00:06]} Kh8 {[%emt 0:01:42]} 36. Bg6 {[%emt 0:00:18]} 1-0

[Event "2. AUT Bundesliga 2020-21"]
[Site "Graz"]
[Date "2021.03.13"]
[Round "2.11"]
[White "Bresch, Manfred"]
[Black "Borhy, Marcell"]
[Result "0-1"]
[ECO "B27"]
[WhiteElo "2008"]
[BlackElo "2392"]
[Annotator "NA"]
[PlyCount "87"]
[EventDate "2021.01.17"]
[EventType "team-tourn"]
[EventCountry "AUT"]
[SourceTitle "playchess.com"]
[Source "ChessBase"]
[SourceQuality "1"]
[TimeControl "40/5400+30:1800+30"]

1. e4 {[%emt 0:00:00]} c5 {[%emt 0:00:06]} 2. Nf3 {[%emt 0:00:00]} b6 {[%emt 0:00:08]} 3. Bc4 {[%emt 0:01:25]} Bb7 {[%emt 0:00:44]} 4. d3 {[%emt 0:01:37]} e6 {[%emt 0:01:00]} 5. O-O {[%emt 0:01:35]} Nf6 {[%emt 0:02:58]} 6. Bg5 {[%emt 0:01:55]} d6 {[%emt 0:01:32]} 7. Nc3 {[%emt 0:02:09]} Be7 {[%emt 0:00:29]} 8. Qe2 {[%emt 0:08:11]} O-O {[%emt 0:05:31]} 9. Rae1 {[%emt 0:07:03]} Nc6 {[%emt 0:03:08]} 10. a3 $1 {[%emt 0:04:18]} a6 {[%emt 0:03:08]} 11. Bd2 {[%emt 0:03:31]} Re8 {[%emt 0:04:28]} 12. Ba2 {[%emt 0:02:33]} Qc7 {[%emt 0:01:16]} 13. Ng5 {[%emt 0:02:21]} h6 {[%emt 0:03:12]} 14. Nh3 {[%emt 0:00:59]} b5 {[%emt 0:02:35]} 15. f4 {[%emt 0:03:22]} b4 {[%emt 0:02:26]} 16. Nb1 {[%emt 0:00:22]} Qb6 {[%emt 0:01:24]} 17. Be3 {[%emt 0:08:15]} d5 {[%emt 0:06:30]} 18. e5 {[%emt 0:02:30]} Nd7 {[%emt 0:00:19]} 19. Nd2 {[%emt 0:06:01]} Qa5 {[%emt 0:19:51]} 20. Bb3 {[%emt 0:01:37]} bxa3 {[%emt 0:05:12]} 21. bxa3 {[%emt 0:00:06]} c4 {[%emt 0:04:52]} 22. dxc4 {[%emt 0:00:48]} d4 {[%emt 0:00:10]} 23. Bf2 {[%emt 0:00:36]} Bxa3 {[%emt 0:10:28]} ({Much weaker is} 23... Qxa3 $6 24. Ra1 $14) ({Better is} 23... Nc5 $15) 24. Ra1 {[%emt 0:04:08]} Qc5 {[%emt 0:03:05]} 25. Ne4 {[%emt 0:07:54]} Qe7 {[%emt 0:00:46]} 26. Rfd1 $14 {[%emt 0:01:33]} Red8 {[%emt 0:02:47]} 27. Rd3 {[%emt 0:05:04]} Nc5 {[%emt 0:01:06]} 28. Nxc5 {[%emt 0:00:44]} Bxc5 {[%emt 0:00:11]} 29. Qg4 {[%emt 0:00:13]} Qf8 {[%emt 0:01:15]} 30. Bh4 {[%emt 0:00:26]} Ne7 {[%emt 0:01:57]} 31. Kh1 Rd7 {[%emt 0:01:06]} 32. Rad1 {[%emt 0:08:49]} Nf5 {[%emt 0:00:35]} 33. Bf2 {[%emt 0:01:06]} Rc7 {[%emt 0:02:08]} 34. Ng1 {[%emt 0:02:17]} Qe8 {[%emt 0:03:16]} 35. Ne2 {[%emt 0:01:06]} Be4 {[%emt 0:01:59]} 36. Rh3 {[%emt 0:00:57]} Ne3 {[%emt 0:01:32]} 37. Bxe3 {[%emt 0:00:05]} Bf5 {[%emt 0:00:06]} 38. Qf3 {[%emt 0:02:24]} Bxh3 {[%emt 0:01:18]} 39. Bxd4 {[%emt 0:01:59]} Bf5 {[%emt 0:01:03]} 40. Bc3 {[%emt 0:00:00]} a5 {[%emt 0:00:00]} 41. Ba4 {[%emt 0:07:17]} Rd8 {[%emt 0:04:22]} 42. Rxd8 {[%emt 0:03:12]} Qxd8 {[%emt 0:00:04]} 43. Ng3 {[%emt 0:00:05]} Rb7 {[%emt 0:01:37]} 44. Qf1 {[%emt 0:05:29]} 0-1

[Event "2. AUT Bundesliga 2020-21"]
[Site "Graz"]
[Date "2021.03.13"]
[Round "2.12"]
[White "Steiner, Peter"]
[Black "Tusha, John"]
[Result "1-0"]
[ECO "C50"]
[WhiteElo "1968"]
[BlackElo "1783"]
[Annotator "NA"]
[PlyCount "53"]
[EventDate "2021.01.17"]
[EventType "team-tourn"]
[EventCountry "AUT"]
[SourceTitle "playchess.com"]
[Source "ChessBase"]
[SourceQuality "1"]
[TimeControl "40/5400+30:1800+30"]

1. e4 {[%emt 0:00:00]} e5 {[%emt 0:00:00]} 2. Nf3 {[%emt 0:00:00]} Nc6 {[%emt 0:00:00]} 3. Bc4 {[%emt 0:00:54]} Nf6 {[%emt 0:00:00]} 4. d3 {[%emt 0:00:40]} Bc5 {[%emt 0:00:29]} 5. O-O {[%emt 0:00:43]} d6 {[%emt 0:02:25]} 6. c3 {[%emt 0:00:22]} a5 {[%emt 0:02:40]} 7. a4 {[%emt 0:03:07]} h6 {[%emt 0:02:31]} 8. Nbd2 {[%emt 0:05:48]} g5 {[%emt 0:03:15]} 9. Nb3 {[%emt 0:02:09]} Ba7 {[%emt 0:02:20]} 10. Be3 {[%emt 0:02:49]} Bg4 {[%emt 0:03:52]} 11. Re1 {[%emt 0:12:24]} Ne7 {[%emt 0:09:54]} (11... Bxe3 $14 12. fxe3 O-O) 12. Nbd2 {[%emt 0:04:55]} (12. d4 $16 Nxe4 13. dxe5 (13. Nxa5 d5 $14) 13... Bxe3 14. Rxe3) 12... Bh5 {[%emt 0:11:03]} (12... Bxe3 $14 13. fxe3 O-O) 13. Qb3 {[%emt 0:09:50]} (13. Bxa7 $16 Rxa7 14. h3) 13... Qc8 $16 {[%emt 0:02:12]} (13... O-O $14) 14. Bxa7 {[%emt 0:04:43]} Rxa7 {[%emt 0:00:32]} 15. d4 {[%emt 0:01:02]} exd4 {[%emt 0:16:06]} 16. cxd4 {[%emt 0:02:46]} O-O {[%emt 0:09:32]} 17. e5 {[%emt 0:01:26]} dxe5 {[%emt 0:01:42]} 18. dxe5 {[%emt 0:00:02]} Nh7 {[%emt 0:01:26]} 19. Ne4 {[%emt 0:18:02]} Bxf3 {[%emt 0:09:27]} 20. Qxf3 {[%emt 0:00:14]} Qf5 {[%emt 0:00:51]} 21. Qc3 {[%emt 0:05:35]} Raa8 {[%emt 0:02:40]} 22. Rad1 {[%emt 0:00:18]} b6 {[%emt 0:00:34]} 23. Ng3 {[%emt 0:03:49]} Qg4 {[%emt 0:07:51]} 24. Rd4 {[%emt 0:00:46]} Qc8 {[%emt 0:00:44]} 25. e6 {[%emt 0:02:51]} f5 {[%emt 0:01:42]} 26. Rd7 {[%emt 0:00:14]} Re8 {[%emt 0:01:09]} 27. Nh5 {[%emt 0:00:15]} 1-0

[Event "2. AUT Bundesliga 2020-21"]
[Site "Graz"]
[Date "2021.03.13"]
[Round "2.13"]
[White "Gelbenegger, Patrick"]
[Black "Kuba, Guenter"]
[Result "1/2-1/2"]
[ECO "C54"]
[WhiteElo "2248"]
[BlackElo "2348"]
[Annotator "ChessBase"]
[PlyCount "62"]
[EventDate "2021.01.17"]
[EventType "team-tourn"]
[EventCountry "AUT"]
[SourceTitle "playchess.com"]
[Source "ChessBase"]
[SourceQuality "1"]
[TimeControl "40/5400+30:1800+30"]

1. e4 {[%emt 0:00:00]} e5 {[%emt 0:00:00]} 2. Nf3 {[%emt 0:00:00]} Nc6 {[%emt 0:00:00]} 3. Bc4 {[%emt 0:00:00]} Bc5 {[%emt 0:00:00]} 4. c3 {[%emt 0:00:00]} Nf6 {[%emt 0:00:00]} 5. d3 {[%emt 0:00:00]} a6 {[%emt 0:00:17]} 6. Bb3 {[%emt 0:00:06]} Ba7 {[%emt 0:00:24]} 7. O-O {[%emt 0:00:53]} d6 {[%emt 0:00:36]} 8. Nbd2 {[%emt 0:00:18]} O-O {[%emt 0:02:41]} 9. h3 {[%emt 0:02:33]} h6 {[%emt 0:02:22]} 10. Re1 {[%emt 0:00:15]} Be6 {[%emt 0:01:57]} 11. Bc2 {[%emt 0:00:16]} Re8 {[%emt 0:02:37]} 12. Nf1 {[%emt 0:00:24]} d5 {[%emt 0:08:33]} 13. exd5 {[%emt 0:01:37]} Qxd5 {[%emt 0:06:30]} 14. Ng3 {[%emt 0:02:53]} Rad8 {[%emt 0:01:34]} 15. Be3 {[%emt 0:02:01]} Bxe3 {[%emt 0:10:05]} 16. Rxe3 {[%emt 0:00:12]} Qb5 {[%emt 0:00:50]} 17. Ba4 {[%emt 0:31:48]} Qxb2 {[%emt 0:03:56]} 18. Nxe5 {[%emt 0:03:35]} Qxc3 {[%emt 0:06:15]} 19. Nxc6 {[%emt 0:03:30]} bxc6 {[%emt 0:01:58]} 20. Rc1 {[%emt 0:04:48]} Qa3 {[%emt 0:04:03]} 21. Bxc6 {[%emt 0:04:51]} Rf8 {[%emt 0:06:56]} 22. Qc2 {[%emt 0:04:16]} Qxa2 {[%emt 0:15:04]} 23. Qxa2 {[%emt 0:03:58]} Bxa2 {[%emt 0:00:23]} 24. Ra1 {[%emt 0:00:10]} Bd5 {[%emt 0:00:32]} 25. Rxa6 {[%emt 0:00:55]} Bxc6 {[%emt 0:01:02]} 26. Rxc6 {[%emt 0:00:09]} Nd5 {[%emt 0:00:28]} 27. Re5 {[%emt 0:03:17]} g6 {[%emt 0:03:12]} 28. Ne4 {[%emt 0:02:52]} Kg7 {[%emt 0:01:48]} 29. Rc5 {[%emt 0:01:23]} Nf6 {[%emt 0:04:25]} 30. Rxc7 {[%emt 0:02:49]} Rxd3 {[%emt 0:00:12]} 31. Nxf6 {[%emt 0:02:27]} Kxf6 {[%emt 0:00:15]} 1/2-1/2

[Event "2. AUT Bundesliga 2020-21"]
[Site "Graz"]
[Date "2021.03.13"]
[Round "2.14"]
[White "Csonka, Attila Istvan"]
[Black "Breneis, Lukas"]
[Result "1-0"]
[ECO "B07"]
[WhiteElo "2362"]
[BlackElo "2252"]
[Annotator "NA"]
[PlyCount "129"]
[EventDate "2021.01.17"]
[EventType "team-tourn"]
[EventCountry "AUT"]
[SourceTitle "playchess.com"]
[Source "ChessBase"]
[SourceQuality "1"]
[TimeControl "40/5400+30:1800+30"]

1. e4 {[%emt 0:00:00]} d6 {[%emt 0:00:00]} 2. d4 {[%emt 0:00:00]} Nf6 {[%emt 0:00:07]} 3. Nc3 {[%emt 0:00:00]} c6 {[%emt 0:00:36]} 4. a4 {[%emt 0:01:11]} e5 {[%emt 0:02:48]} 5. Nf3 {[%emt 0:00:24]} Nbd7 {[%emt 0:06:31]} 6. Bc4 {[%emt 0:01:43]} Be7 {[%emt 0:01:22]} 7. O-O {[%emt 0:00:58]} O-O {[%emt 0:00:10]} 8. Re1 {[%emt 0:00:24]} Qc7 {[%emt 0:23:28] 8...h6 is a critical line.} 9. Ba2 {[%emt 0:02:03]} Rb8 {[%emt 0:02:27]} 10. Qd3 {[%emt 0:04:04]} b6 {[%emt 0:08:02]} 11. Bg5 {[%emt 0:05:53]} a6 {[%emt 0:08:11] [#]} 12. d5 $146 {[%emt 0:04:28]} ({Predecessor:} 12. Rad1 b5 13. axb5 axb5 14. dxe5 dxe5 15. h3 Nc5 16. Qe3 Ne6 17. Bxe6 Bxe6 18. Bh4 {1-0 (40) Crespo,E (2174)-Paolini,C (1937) Trelew 2018}) 12... cxd5 {[%emt 0:04:26]} 13. Bxd5 {[%emt 0:03:52]} Nc5 {[%emt 0:05:03]} 14. Qe2 {[%emt 0:01:45]} Be6 {[%emt 0:01:55]} 15. Bxf6 {[%emt 0:03:34]} Bxf6 {[%emt 0:00:15]} 16. Red1 {[%emt 0:02:43]} Rfc8 {[%emt 0:05:36]} 17. Ra3 {[%emt 0:01:40]} Qa7 {[%emt 0:05:14]} 18. Qe3 {[%emt 0:06:07]} Qc7 {[%emt 0:06:00]} 19. Qe2 {[%emt 0:05:24]} Qa7 {[%emt 0:00:01]} 20. Nd2 {[%emt 0:02:53]} Be7 {[%emt 0:01:32]} 21. Nc4 {[%emt 0:02:21]} Qc7 {[%emt 0:04:20]} 22. Ne3 {[%emt 0:00:50]} Qa7 {[%emt 0:00:50]} 23. Nf5 {[%emt 0:02:54]} Bxf5 {[%emt 0:01:20]} (23... Bf8 $16 {might work better.}) 24. exf5 {[%emt 0:00:06]} Nd7 {[%emt 0:03:04]} 25. Ne4 {[%emt 0:06:28]} (25. Qh5 $18 {has better winning chances.} Nf6 26. Qxf7+ Kh8 27. Ne4) 25... Nf6 {[%emt 0:00:36]} 26. Rad3 $16 {[%emt 0:08:47]} b5 {[%emt 0:04:09]} 27. axb5 {[%emt 0:03:04]} axb5 {[%emt 0:00:25]} 28. Nxf6+ {[%emt 0:01:21]} Bxf6 {[%emt 0:00:01]} 29. Bb3 {[%emt 0:01:12]} Rd8 {[%emt 0:02:04]} 30. Qe4 {[%emt 0:03:03]} Rb6 {[%emt 0:01:32]} 31. g3 {[%emt 0:00:18]} h6 {[%emt 0:00:28]} 32. Kg2 {[%emt 0:00:21]} Be7 {[%emt 0:00:46]} 33. Rf3 {[%emt 0:01:14]} Bf6 {[%emt 0:00:48]} 34. h4 {[%emt 0:01:19]} Qa8 {[%emt 0:00:30]} 35. Rd5 {[%emt 0:06:02]} Qa1 {[%emt 0:00:40]} 36. Rc3 {[%emt 0:00:24]} Qa7 {[%emt 0:01:31]} 37. Kh3 {[%emt 0:01:07]} Ra6 {[%emt 0:00:42]} 38. Kg2 {[%emt 0:04:46]} Rb6 {[%emt 0:00:07]} 39. Rd1 {[%emt 0:02:26]} Qb7 {[%emt 0:01:08]} 40. Bd5 {[%emt 0:00:00]} Qa7 {[%emt 0:00:00]} 41. Ra3 {[%emt 0:07:05]} Ra6 {[%emt 0:01:36]} 42. Rda1 {[%emt 0:00:29]} Rxa3 {[%emt 0:00:24]} 43. Rxa3 {[%emt 0:00:04]} Qb6 {[%emt 0:06:56]} 44. Qe3 {[%emt 0:01:44]} Qc5 {[%emt 0:05:22]} 45. Qe4 {[%emt 0:04:50]} Qb6 {[%emt 0:00:45]} 46. Rc3 {[%emt 0:00:51]} Qa5 {[%emt 0:05:55]} 47. b4 {[%emt 0:01:24]} Qa7 {[%emt 0:00:56]} 48. Qe3 {[%emt 0:03:37]} Qd7 {[%emt 0:00:59]} 49. Qe4 {[%emt 0:01:39]} Qa7 {[%emt 0:03:15]} 50. Rc6 {[%emt 0:00:30]} Be7 {[%emt 0:02:37]} 51. Qd3 {[%emt 0:00:57]} Qd7 {[%emt 0:01:02]} 52. Rb6 {[%emt 0:00:33]} Rc8 {[%emt 0:01:17]} 53. Rb7 {[%emt 0:01:55]} Rc7 {[%emt 0:00:48]} 54. Rxc7 {[%emt 0:00:15]} Qxc7 {[%emt 0:00:01]} 55. Qxb5 {[%emt 0:00:07]} Kf8 {[%emt 0:01:29]} 56. c4 {[%emt 0:00:51]} g6 {[%emt 0:00:02]} 57. fxg6 {[%emt 0:00:16]} fxg6 {[%emt 0:00:02]} 58. Qa4 {[%emt 0:00:33]} Kg7 {[%emt 0:00:33]} 59. Qe8 {[%emt 0:00:19]} Bf8 {[%emt 0:00:20]} 60. Qe6 {[%emt 0:00:22]} Qe7 {[%emt 0:00:06]} 61. Qg8+ {[%emt 0:01:28]} Kf6 {[%emt 0:00:03]} 62. b5 {[%emt 0:00:13]} e4 {[%emt 0:00:37]} 63. b6 {[%emt 0:00:21]} e3 {[%emt 0:00:06]} 64. fxe3 {[%emt 0:00:05]} Qxe3 {[%emt 0:00:12]} 65. Qxf8+ {[%emt 0:00:07]} 1-0

[Event "2. AUT Bundesliga 2020-21"]
[Site "Graz"]
[Date "2021.03.13"]
[Round "2.15"]
[White "Meyer, Gordon"]
[Black "Postl, Anton"]
[Result "1/2-1/2"]
[ECO "B94"]
[WhiteElo "2216"]
[BlackElo "2290"]
[Annotator "ChessBase"]
[PlyCount "72"]
[EventDate "2021.01.17"]
[EventType "team-tourn"]
[EventCountry "AUT"]
[SourceTitle "playchess.com"]
[Source "ChessBase"]
[SourceQuality "1"]
[TimeControl "40/5400+30:1800+30"]

1. e4 {[%emt 0:00:00]} c5 {[%emt 0:00:00]} 2. Nf3 {[%emt 0:00:00]} d6 {[%emt 0:00:03]} 3. d4 {[%emt 0:00:04]} cxd4 {[%emt 0:00:13]} 4. Nxd4 {[%emt 0:00:05]} Nf6 {[%emt 0:00:19]} 5. Nc3 {[%emt 0:00:09]} a6 {[%emt 0:00:22]} 6. Bg5 {[%emt 0:00:35]} Nbd7 {[%emt 0:00:38]} 7. Qd2 {[%emt 0:07:16]} e6 {[%emt 0:04:22]} 8. O-O-O {[%emt 0:01:18]} b5 {[%emt 0:05:58]} 9. f3 {[%emt 0:03:40]} Bb7 {[%emt 0:03:42]} 10. h4 {[%emt 0:07:28]} b4 {[%emt 0:04:33]} 11. Nce2 {[%emt 0:04:44]} Qa5 {[%emt 0:06:56]} 12. Kb1 {[%emt 0:03:13]} d5 {[%emt 0:04:01]} 13. Nb3 {[%emt 0:09:29]} Qc7 {[%emt 0:02:42]} 14. exd5 {[%emt 0:06:04]} Nxd5 {[%emt 0:06:14]} 15. Nf4 {[%emt 0:10:19]} Bd6 {[%emt 0:03:56]} 16. Nxd5 {[%emt 0:00:49]} Bxd5 {[%emt 0:01:45]} 17. c4 {[%emt 0:03:38]} bxc3 {[%emt 0:02:49]} 18. Qxc3 {[%emt 0:00:44]} Qxc3 {[%emt 0:08:37]} 19. bxc3 {[%emt 0:00:05]} Be5 {[%emt 0:00:18]} 20. c4 {[%emt 0:01:29]} Bc6 {[%emt 0:00:35]} 21. Be3 {[%emt 0:02:16]} Ke7 {[%emt 0:05:49]} 22. Be2 {[%emt 0:05:37]} Rhc8 {[%emt 0:02:09]} 23. Bd4 {[%emt 0:03:11]} Ba4 {[%emt 0:04:31]} 24. Bxe5 {[%emt 0:01:00]} Nxe5 {[%emt 0:00:49]} 25. Rc1 {[%emt 0:00:24]} Rab8 {[%emt 0:00:57]} 26. Rc3 {[%emt 0:00:51]} Nd7 {[%emt 0:06:49]} 27. Kb2 {[%emt 0:02:08]} Nc5 {[%emt 0:01:09]} 28. Ka3 {[%emt 0:00:32]} Bxb3 {[%emt 0:00:46]} 29. axb3 {[%emt 0:00:11]} a5 {[%emt 0:00:34]} 30. g4 {[%emt 0:12:03]} Rb4 {[%emt 0:02:32]} 31. Bd1 {[%emt 0:01:21]} Rd8 {[%emt 0:00:54]} 32. Bc2 {[%emt 0:00:28]} h6 {[%emt 0:01:48]} 33. Rd1 {[%emt 0:03:53]} Rxd1 {[%emt 0:09:45]} 34. Bxd1 {[%emt 0:00:04]} g5 {[%emt 0:00:13]} 35. hxg5 {[%emt 0:00:05]} hxg5 {[%emt 0:00:09]} 36. Re3 {[%emt 0:00:51]} Kd6 {[%emt 0:05:11]} 1/2-1/2